Workbook

Sheet Inicio_ContaNal
A35: Descargue la versión Kindle
L45: Miguel Cervantes Jiménez

Sheet PIB_Gasto (hidden)
A1: PIB Contabilizado por el Método del Gasto
A2: CONCEPTO | B2: Valores | C2: Estructura Porcentual
A3: Producto Interno Bruto | B3: =B4+B5+B6+B7-B8+B9 -> 7,709,095,808 | C3: =B3/$B$3 -> 100%
A4: Consumo Privado | B4: 5,250,212,939 | C4: 68%
A5: Consumo del Gobierno General | B5: 913,414,282 | C5: 12%
A6: Formación Bruta de Capital Fijo | B6: 1,513,648,923 | C6: 20%
A7: Exportación de Bienes y Servicios | B7: 2,279,118,528 | C7: 30%
A8: Importación de Bienes y Servicios | B8: 2,436,557,215 | C8: 32%
A9: Variación de Existencias | B9: 189,258,351 | C9: 2%
C11: Títulos
C12: Resultados
C13: Insertar Datos
C14: Equilibrio

Sheet PIB_ValAgregado (hidden)
A1: PIB Contabilizado por el Método del Valor Agregado
A2: CONCEPTO | B2: Valores | C2: Estructura Porcentual
A3: Producto Interno Bruto, a precios de mercado | B3: =B4+B5 -> 7,509,095,808 | C3: =B3/$B$3 -> 100%
A4: Impuestos a los Productos Netos de Subsidios | B4: 545,037,222 | C4: 7%
A5: Valor Agregado Bruto en valores básicos | B5: =SUM(B6:B15) -> 6,964,058,586 | C5: 93%
A6: 1 Agropecuario, Silvicultura y Pesca | B6: 267,704,468 | C6: 4%
A7: 2 Minería | B7: 100,703,643 | C7: 1%
A8: 3 Industria Manufacturera | B8: 1,257,053,641 | C8: 17%
A9: 4 Construcción | B9: 380,233,936 | C9: 5%
A10: 5 Electricidad, Gas y Agua | B10: 92,699,037 | C10: 1%
A11: 6 Comercio, Restaurantes y Hoteles | B11: 1,449,270,416 | C11: 19%
A12: 7 Transporte, Almacenaje y Comunicaciones | B12: 725,500,011 | C12: 10%
A13: 8 Servicios Financieros, Seguros, Actividades Inmobiliarias y de Alquiler | B13: 904,356,225 | C13: =B13/$B$3 -> 12%
A14: 9 Servicios Comunales, Sociales y Personales | B14: 1,864,912,170 | C14: 25%
A15: 10 Cargo por los Servicios Bancarios Imputados | B15: -78,374,961 | C15: -1%
C18: Títulos
C19: Resultados
C20: Insertar Datos
C21: Equilibrio

Sheet PIB_Ingreso (hidden)
A1: PIB Contabilizado por el Método del Ingreso
A2: CONCEPTO | B2: Valores | C2: Estructura Porcentual
A3: Producto Interno Bruto, a precios de mercado | B3: =B4+B5+B6+B7 -> 7,709,095,808 | C3: =B3/$B$3 -> 100%
A4: Remuneración de Asalariados | B4: 2,341,995,759 | C4: =B4/$B$3 -> 30%
A5: Impuestos a la Producción e Importaciones | B5: 819,276,131 | C5: =B5/$B$3 -> 11%
A6: Subsidios (-) | B6: -32,778,445 | C6: =B6/$B$3 -> -0%
A7: Excedente Bruto de Operación | B7: 4,580,602,363 | C7: =B7/$B$3 -> 59%
C9: Títulos
C10: Resultados
C11: Insertar Datos
C12: Equilibrio

Sheet YNalDisp (hidden)
A1: Cuenta del Ingreso Nacional Disponible
A2: CONCEPTO | B2: Valores | C2: Estructura Porcentual
A3: Valor Bruto de la Producción | B3: =B4+B5 -> 12,815,257,250 | C3: =B3/$B$5 -> 166%
A4: Consumo Intermedio | B4: 5,106,161,442 | C4: 66%
A5: Producto Interno Bruto, a precios de mercado | B5: 7,709,095,808 | C5: 100%
A6: Consumo de Capital Fijo (-) | B6: -768,806,274 | C6: -10%
A7: Ingreso Neto Disponible a precios de mercado | B7: =B5-B6 -> 8,477,902,082 | C7: 110%
A8: Ingresos Factoriales Netos del Resto del Mundo (+) | B8: 74,464,142 | C8: =B8/$B$5 -> 1%
A9: Ingreso Nacional Disponible, a precios de mercado | B9: =B7+B8 -> 8,552,366,224 | C9: 111%
A10: Gastos de consumo efectivo individual | B10: 5,757,164,944 | C10: 75%
A11: Gastos de consumo efectivo colectivo | B11: 410,220,369 | C11: 5%
A12: Ahorro neto | B12: =B9-B10-B11 -> 2,384,980,911 | C12: 31%
C14: Títulos
C15: Resultados
C16: Insertar Datos
C17: Equilibrio

Sheet INDPREC (hidden)
A1: ÍNDICES DE PRECIOS
C3: AÑOS BASE | E3: AÑO DE ESTUDIO | H3: Índice de precio de: | I3: Indice
B4: Bienes | C4: p0 | D4: x0 | E4: p1 | F4: x1 | H4: Laspeyres | I4: =Oculto_contanal!AX3 -> 
B5: 1 | C5: 0 | D5: 0 | E5: 0 | F5: 0 | H5: Paasche | I5: =Oculto_contanal!AX4 -> 
B6: 2 | C6: 0 | D6: 0 | E6: 0 | F6: 0 | H6: Fisher | I6: =Oculto_contanal!AX5 -> 
B7: 3 | C7: 0 | D7: 0 | E7: 0 | F7: 0 | H7: Marshall-Edgeworth | I7: =Oculto_contanal!AX6 -> 
B8: 4 | C8: 0 | D8: 0 | E8: 0 | F8: 0 | H8: Variación del gasto | I8: =Oculto_contanal!AX10 -> 
B9: 5 | C9: 0 | D9: 0 | E9: 0 | F9: 0 | H9: Por definición: Año Base = 100
B10: 6 | C10: 0 | D10: 0 | E10: 0 | F10: 0
B11: 7 | C11: 0 | D11: 0 | E11: 0 | F11: 0
B12: 8 | C12: 0 | D12: 0 | E12: 0 | F12: 0
B13: 9 | C13: 0 | D13: 0 | E13: 0 | F13: 0
B14: 10 | C14: 0 | D14: 0 | E14: 0 | F14: 0
B15: 11 | C15: 0 | D15: 0 | E15: 0 | F15: 0
B16: 12 | C16: 0 | D16: 0 | E16: 0 | F16: 0
B17: 13 | C17: 0 | D17: 0 | E17: 0 | F17: 0
B18: 14 | C18: 0 | D18: 0 | E18: 0 | F18: 0
B19: 15 | C19: 0 | D19: 0 | E19: 0 | F19: 0
B20: 16 | C20: 0 | D20: 0 | E20: 0 | F20: 0
B21: 17 | C21: 0 | D21: 0 | E21: 0 | F21: 0
B22: 18 | C22: 0 | D22: 0 | E22: 0 | F22: 0
B23: 19 | C23: 0 | D23: 0 | E23: 0 | F23: 0
B24: 20 | C24: 0 | D24: 0 | E24: 0 | F24: 0
B25: 21 | C25: 0 | D25: 0 | E25: 0 | F25: 0 | H25: Títulos
B26: 22 | C26: 0 | D26: 0 | E26: 0 | F26: 0 | H26: Resultados
B27: 23 | C27: 0 | D27: 0 | E27: 0 | F27: 0 | H27: Insertar datos
B28: 24 | C28: 0 | D28: 0 | E28: 0 | F28: 0
B29: 25 | C29: 0 | D29: 0 | E29: 0 | F29: 0
B30: 26 | C30: 0 | D30: 0 | E30: 0 | F30: 0
B31: 27 | C31: 0 | D31: 0 | E31: 0 | F31: 0
B32: 28 | C32: 0 | D32: 0 | E32: 0 | F32: 0
B33: 29 | C33: 0 | D33: 0 | E33: 0 | F33: 0
B34: 30 | C34: 0 | D34: 0 | E34: 0 | F34: 0
B35: 31 | C35: 0 | D35: 0 | E35: 0 | F35: 0
B36: 32 | C36: 0 | D36: 0 | E36: 0 | F36: 0
B37: 33 | C37: 0 | D37: 0 | E37: 0 | F37: 0
B38: 34 | C38: 0 | D38: 0 | E38: 0 | F38: 0
B39: 35 | C39: 0 | D39: 0 | E39: 0 | F39: 0
B40: 36 | C40: 0 | D40: 0 | E40: 0 | F40: 0
B41: 37 | C41: 0 | D41: 0 | E41: 0 | F41: 0
B42: 38 | C42: 0 | D42: 0 | E42: 0 | F42: 0
B43: 39 | C43: 0 | D43: 0 | E43: 0 | F43: 0
B44: 40 | C44: 0 | D44: 0 | E44: 0 | F44: 0
B45: 41 | C45: 0 | D45: 0 | E45: 0 | F45: 0
B46: 42 | C46: 0 | D46: 0 | E46: 0 | F46: 0
B47: 43 | C47: 0 | D47: 0 | E47: 0 | F47: 0
B48: 44 | C48: 0 | D48: 0 | E48: 0 | F48: 0
B49: 45 | C49: 0 | D49: 0 | E49: 0 | F49: 0
B50: 46 | C50: 0 | D50: 0 | E50: 0 | F50: 0
B51: 47 | C51: 0 | D51: 0 | E51: 0 | F51: 0
B52: 48 | C52: 0 | D52: 0 | E52: 0 | F52: 0
B53: 49 | C53: 0 | D53: 0 | E53: 0 | F53: 0
B54: 50 | C54: 0 | D54: 0 | E54: 0 | F54: 0

Sheet Oculto_contanal (hidden)
AM1: año base | AO1: año de estudio | AQ1: LASPEYRES | AS1: PAASCHE | AU1: MARSHALL
AM2: po | AN2: xo | AO2: pi | AP2: xi | AQ2: poxo | AR2: pixo | AS2: pixi | AT2: poxi | AU2: pi(xo+xi) | AV2: po(xo+xi)
AL3: 1 | AM3: =INDPREC!C5 -> 0 | AN3: =INDPREC!D5 -> 0 | AO3: =INDPREC!E5 -> 0 | AP3: =INDPREC!F5 -> 0 | AQ3: =AM3*AN3 -> 0 | AR3: =AO3*AN3 -> 0 | AS3: =AO3*AP3 -> 0 | AT3: =AM3*AP3 -> 0 | AU3: =AO3*(AN3+AP3) -> 0 | AV3: =AM3*(AN3+AP3) -> 0 | AW3: LASPEYRES | AX3: =AR53/AQ53*100 -> 
AL4: 2 | AM4: =INDPREC!C6 -> 0 | AN4: =INDPREC!D6 -> 0 | AO4: =INDPREC!E6 -> 0 | AP4: =INDPREC!F6 -> 0 | AQ4: =AM4*AN4 -> 0 | AR4: =AO4*AN4 -> 0 | AS4: =AO4*AP4 -> 0 | AT4: =AM4*AP4 -> 0 | AU4: =AO4*(AN4+AP4) -> 0 | AV4: =AM4*(AN4+AP4) -> 0 | AW4: PAASCHE | AX4: =AS53/AT53*100 -> 
AL5: 3 | AM5: =INDPREC!C7 -> 0 | AN5: =INDPREC!D7 -> 0 | AO5: =INDPREC!E7 -> 0 | AP5: =INDPREC!F7 -> 0 | AQ5: =AM5*AN5 -> 0 | AR5: =AO5*AN5 -> 0 | AS5: 0 | AT5: 0 | AU5: 0 | AV5: 0 | AW5: FISHER | AX5: =(AX4*AX3)^(1/2) -> 
AL6: 4 | AM6: =INDPREC!C8 -> 0 | AN6: =INDPREC!D8 -> 0 | AO6: =INDPREC!E8 -> 0 | AP6: =INDPREC!F8 -> 0 | AQ6: =AM6*AN6 -> 0 | AR6: =AO6*AN6 -> 0 | AS6: 0 | AT6: 0 | AU6: 0 | AV6: 0 | AW6: MARSHALL-EDGEWORTH | AX6: =AU53/AV53*100 -> 
AL7: 5 | AM7: =INDPREC!C9 -> 0 | AN7: =INDPREC!D9 -> 0 | AO7: =INDPREC!E9 -> 0 | AP7: =INDPREC!F9 -> 0 | AQ7: 0 | AR7: 0 | AS7: 0 | AT7: 0 | AU7: 0 | AV7: 0 | AW7: VALOR | AX7: =AS53/AQ53*100 -> 
AL8: 6 | AM8: =INDPREC!C10 -> 0 | AN8: =INDPREC!D10 -> 0 | AO8: =INDPREC!E10 -> 0 | AP8: =INDPREC!F10 -> 0 | AQ8: 0 | AR8: 0 | AS8: 0 | AT8: 0 | AU8: 0 | AV8: 0 | AW8: AÑO BASE | AX8: 100
AL9: 7 | AM9: =INDPREC!C11 -> 0 | AN9: =INDPREC!D11 -> 0 | AO9: =INDPREC!E11 -> 0 | AP9: =INDPREC!F11 -> 0 | AQ9: 0 | AR9: 0 | AS9: 0 | AT9: 0 | AU9: 0 | AV9: 0
AL10: 8 | AM10: =INDPREC!C12 -> 0 | AN10: =INDPREC!D12 -> 0 | AO10: =INDPREC!E12 -> 0 | AP10: =INDPREC!F12 -> 0 | AQ10: 0 | AR10: 0 | AS10: 0 | AT10: 0 | AU10: 0 | AV10: 0 | AW10: VALOR | AX10: =AX7 -> 
AL11: 9 | AM11: =INDPREC!C13 -> 0 | AN11: =INDPREC!D13 -> 0 | AO11: =INDPREC!E13 -> 0 | AP11: =INDPREC!F13 -> 0 | AQ11: 0 | AR11: 0 | AS11: 0 | AT11: 0 | AU11: 0 | AV11: 0 | AW11: MARSHALL-EDGEWORTH | AX11: =AX6 -> 
AL12: 10 | AM12: =INDPREC!C14 -> 0 | AN12: =INDPREC!D14 -> 0 | AO12: =INDPREC!E14 -> 0 | AP12: =INDPREC!F14 -> 0 | AQ12: 0 | AR12: 0 | AS12: 0 | AT12: 0 | AU12: 0 | AV12: 0 | AW12: FISHER | AX12: =AX5 -> 
AL13: 11 | AM13: =INDPREC!C15 -> 0 | AN13: =INDPREC!D15 -> 0 | AO13: =INDPREC!E15 -> 0 | AP13: =INDPREC!F15 -> 0 | AQ13: 0 | AR13: 0 | AS13: 0 | AT13: 0 | AU13: 0 | AV13: 0 | AW13: PAASCHE | AX13: =AX4 -> 
AL14: 12 | AM14: =INDPREC!C16 -> 0 | AN14: =INDPREC!D16 -> 0 | AO14: =INDPREC!E16 -> 0 | AP14: =INDPREC!F16 -> 0 | AQ14: 0 | AR14: 0 | AS14: 0 | AT14: 0 | AU14: 0 | AV14: 0 | AW14: LASPEYRES | AX14: =AX3 -> 
AL15: 13 | AM15: =INDPREC!C17 -> 0 | AN15: =INDPREC!D17 -> 0 | AO15: =INDPREC!E17 -> 0 | AP15: =INDPREC!F17 -> 0 | AQ15: 0 | AR15: 0 | AS15: 0 | AT15: 0 | AU15: 0 | AV15: 0 | AW15: AÑO BASE | AX15: =AX8 -> 100
AL16: 14 | AM16: =INDPREC!C18 -> 0 | AN16: =INDPREC!D18 -> 0 | AO16: =INDPREC!E18 -> 0 | AP16: =INDPREC!F18 -> 0 | AQ16: 0 | AR16: 0 | AS16: 0 | AT16: 0 | AU16: 0 | AV16: 0
AL17: 15 | AM17: =INDPREC!C19 -> 0 | AN17: =INDPREC!D19 -> 0 | AO17: =INDPREC!E19 -> 0 | AP17: =INDPREC!F19 -> 0 | AQ17: 0 | AR17: 0 | AS17: 0 | AT17: 0 | AU17: 0 | AV17: 0
AL18: 16 | AM18: =INDPREC!C20 -> 0 | AN18: =INDPREC!D20 -> 0 | AO18: =INDPREC!E20 -> 0 | AP18: =INDPREC!F20 -> 0 | AQ18: 0 | AR18: 0 | AS18: 0 | AT18: 0 | AU18: 0 | AV18: 0
AL19: 17 | AM19: =INDPREC!C21 -> 0 | AN19: =INDPREC!D21 -> 0 | AO19: =INDPREC!E21 -> 0 | AP19: =INDPREC!F21 -> 0 | AQ19: 0 | AR19: 0 | AS19: 0 | AT19: 0 | AU19: 0 | AV19: 0
AL20: 18 | AM20: =INDPREC!C22 -> 0 | AN20: =INDPREC!D22 -> 0 | AO20: =INDPREC!E22 -> 0 | AP20: =INDPREC!F22 -> 0 | AQ20: 0 | AR20: 0 | AS20: 0 | AT20: 0 | AU20: 0 | AV20: 0
AL21: 19 | AM21: =INDPREC!C23 -> 0 | AN21: =INDPREC!D23 -> 0 | AO21: =INDPREC!E23 -> 0 | AP21: =INDPREC!F23 -> 0 | AQ21: 0 | AR21: 0 | AS21: 0 | AT21: 0 | AU21: 0 | AV21: 0
AL22: 20 | AM22: =INDPREC!C24 -> 0 | AN22: =INDPREC!D24 -> 0 | AO22: =INDPREC!E24 -> 0 | AP22: =INDPREC!F24 -> 0 | AQ22: 0 | AR22: 0 | AS22: 0 | AT22: 0 | AU22: 0 | AV22: 0
AL23: 21 | AM23: =INDPREC!C25 -> 0 | AN23: =INDPREC!D25 -> 0 | AO23: =INDPREC!E25 -> 0 | AP23: =INDPREC!F25 -> 0 | AQ23: 0 | AR23: 0 | AS23: 0 | AT23: 0 | AU23: 0 | AV23: 0
AL24: 22 | AM24: =INDPREC!C26 -> 0 | AN24: =INDPREC!D26 -> 0 | AO24: =INDPREC!E26 -> 0 | AP24: =INDPREC!F26 -> 0 | AQ24: 0 | AR24: 0 | AS24: 0 | AT24: 0 | AU24: 0 | AV24: 0
AL25: 23 | AM25: =INDPREC!C27 -> 0 | AN25: =INDPREC!D27 -> 0 | AO25: =INDPREC!E27 -> 0 | AP25: =INDPREC!F27 -> 0 | AQ25: 0 | AR25: 0 | AS25: 0 | AT25: 0 | AU25: 0 | AV25: 0
AL26: 24 | AM26: =INDPREC!C28 -> 0 | AN26: =INDPREC!D28 -> 0 | AO26: =INDPREC!E28 -> 0 | AP26: =INDPREC!F28 -> 0 | AQ26: 0 | AR26: 0 | AS26: 0 | AT26: 0 | AU26: 0 | AV26: 0
AL27: 25 | AM27: =INDPREC!C29 -> 0 | AN27: =INDPREC!D29 -> 0 | AO27: =INDPREC!E29 -> 0 | AP27: =INDPREC!F29 -> 0 | AQ27: 0 | AR27: 0 | AS27: 0 | AT27: 0 | AU27: 0 | AV27: 0
AL28: 26 | AM28: =INDPREC!C30 -> 0 | AN28: =INDPREC!D30 -> 0 | AO28: =INDPREC!E30 -> 0 | AP28: =INDPREC!F30 -> 0 | AQ28: 0 | AR28: 0 | AS28: 0 | AT28: 0 | AU28: 0 | AV28: 0
AL29: 27 | AM29: =INDPREC!C31 -> 0 | AN29: =INDPREC!D31 -> 0 | AO29: =INDPREC!E31 -> 0 | AP29: =INDPREC!F31 -> 0 | AQ29: 0 | AR29: 0 | AS29: 0 | AT29: 0 | AU29: 0 | AV29: 0
AL30: 28 | AM30: =INDPREC!C32 -> 0 | AN30: =INDPREC!D32 -> 0 | AO30: =INDPREC!E32 -> 0 | AP30: =INDPREC!F32 -> 0 | AQ30: 0 | AR30: 0 | AS30: 0 | AT30: 0 | AU30: 0 | AV30: 0
AL31: 29 | AM31: =INDPREC!C33 -> 0 | AN31: =INDPREC!D33 -> 0 | AO31: =INDPREC!E33 -> 0 | AP31: =INDPREC!F33 -> 0 | AQ31: 0 | AR31: 0 | AS31: 0 | AT31: 0 | AU31: 0 | AV31: 0
AL32: 30 | AM32: =INDPREC!C34 -> 0 | AN32: =INDPREC!D34 -> 0 | AO32: =INDPREC!E34 -> 0 | AP32: =INDPREC!F34 -> 0 | AQ32: 0 | AR32: 0 | AS32: 0 | AT32: 0 | AU32: 0 | AV32: 0
AL33: 31 | AM33: =INDPREC!C35 -> 0 | AN33: =INDPREC!D35 -> 0 | AO33: =INDPREC!E35 -> 0 | AP33: =INDPREC!F35 -> 0 | AQ33: 0 | AR33: 0 | AS33: 0 | AT33: 0 | AU33: 0 | AV33: 0
AL34: 32 | AM34: =INDPREC!C36 -> 0 | AN34: =INDPREC!D36 -> 0 | AO34: =INDPREC!E36 -> 0 | AP34: =INDPREC!F36 -> 0 | AQ34: 0 | AR34: 0 | AS34: 0 | AT34: 0 | AU34: 0 | AV34: 0
AL35: 33 | AM35: =INDPREC!C37 -> 0 | AN35: =INDPREC!D37 -> 0 | AO35: =INDPREC!E37 -> 0 | AP35: =INDPREC!F37 -> 0 | AQ35: 0 | AR35: 0 | AS35: 0 | AT35: 0 | AU35: 0 | AV35: 0
AL36: 34 | AM36: =INDPREC!C38 -> 0 | AN36: =INDPREC!D38 -> 0 | AO36: =INDPREC!E38 -> 0 | AP36: =INDPREC!F38 -> 0 | AQ36: 0 | AR36: 0 | AS36: 0 | AT36: 0 | AU36: 0 | AV36: 0
AL37: 35 | AM37: =INDPREC!C39 -> 0 | AN37: =INDPREC!D39 -> 0 | AO37: =INDPREC!E39 -> 0 | AP37: =INDPREC!F39 -> 0 | AQ37: 0 | AR37: 0 | AS37: 0 | AT37: 0 | AU37: 0 | AV37: 0
AL38: 36 | AM38: =INDPREC!C40 -> 0 | AN38: =INDPREC!D40 -> 0 | AO38: =INDPREC!E40 -> 0 | AP38: =INDPREC!F40 -> 0 | AQ38: 0 | AR38: 0 | AS38: 0 | AT38: 0 | AU38: 0 | AV38: 0
AL39: 37 | AM39: =INDPREC!C41 -> 0 | AN39: =INDPREC!D41 -> 0 | AO39: =INDPREC!E41 -> 0 | AP39: =INDPREC!F41 -> 0 | AQ39: 0 | AR39: 0 | AS39: 0 | AT39: 0 | AU39: 0 | AV39: 0
AL40: 38 | AM40: =INDPREC!C42 -> 0 | AN40: =INDPREC!D42 -> 0 | AO40: =INDPREC!E42 -> 0 | AP40: =INDPREC!F42 -> 0 | AQ40: 0 | AR40: 0 | AS40: 0 | AT40: 0 | AU40: 0 | AV40: 0
AL41: 39 | AM41: =INDPREC!C43 -> 0 | AN41: =INDPREC!D43 -> 0 | AO41: =INDPREC!E43 -> 0 | AP41: =INDPREC!F43 -> 0 | AQ41: 0 | AR41: 0 | AS41: 0 | AT41: 0 | AU41: 0 | AV41: 0
AL42: 40 | AM42: =INDPREC!C44 -> 0 | AN42: =INDPREC!D44 -> 0 | AO42: =INDPREC!E44 -> 0 | AP42: =INDPREC!F44 -> 0 | AQ42: 0 | AR42: 0 | AS42: 0 | AT42: 0 | AU42: 0 | AV42: 0
AL43: 41 | AM43: =INDPREC!C45 -> 0 | AN43: =INDPREC!D45 -> 0 | AO43: =INDPREC!E45 -> 0 | AP43: =INDPREC!F45 -> 0 | AQ43: 0 | AR43: 0 | AS43: 0 | AT43: 0 | AU43: 0 | AV43: 0
AL44: 42 | AM44: =INDPREC!C46 -> 0 | AN44: =INDPREC!D46 -> 0 | AO44: =INDPREC!E46 -> 0 | AP44: =INDPREC!F46 -> 0 | AQ44: 0 | AR44: 0 | AS44: 0 | AT44: 0 | AU44: 0 | AV44: 0
AL45: 43 | AM45: =INDPREC!C47 -> 0 | AN45: =INDPREC!D47 -> 0 | AO45: =INDPREC!E47 -> 0 | AP45: =INDPREC!F47 -> 0 | AQ45: 0 | AR45: 0 | AS45: 0 | AT45: 0 | AU45: 0 | AV45: 0
AL46: 44 | AM46: =INDPREC!C48 -> 0 | AN46: =INDPREC!D48 -> 0 | AO46: =INDPREC!E48 -> 0 | AP46: =INDPREC!F48 -> 0 | AQ46: 0 | AR46: 0 | AS46: 0 | AT46: 0 | AU46: 0 | AV46: 0
AL47: 45 | AM47: =INDPREC!C49 -> 0 | AN47: =INDPREC!D49 -> 0 | AO47: =INDPREC!E49 -> 0 | AP47: =INDPREC!F49 -> 0 | AQ47: 0 | AR47: 0 | AS47: 0 | AT47: 0 | AU47: 0 | AV47: 0
AL48: 46 | AM48: =INDPREC!C50 -> 0 | AN48: =INDPREC!D50 -> 0 | AO48: =INDPREC!E50 -> 0 | AP48: =INDPREC!F50 -> 0 | AQ48: 0 | AR48: 0 | AS48: 0 | AT48: 0 | AU48: 0 | AV48: 0
AL49: 47 | AM49: =INDPREC!C51 -> 0 | AN49: =INDPREC!D51 -> 0 | AO49: =INDPREC!E51 -> 0 | AP49: =INDPREC!F51 -> 0 | AQ49: 0 | AR49: 0 | AS49: 0 | AT49: 0 | AU49: 0 | AV49: 0
AL50: 48 | AM50: =INDPREC!C52 -> 0 | AN50: =INDPREC!D52 -> 0 | AO50: =INDPREC!E52 -> 0 | AP50: =INDPREC!F52 -> 0 | AQ50: =AM50*AN50 -> 0 | AR50: =AO50*AN50 -> 0 | AS50: =AO50*AP50 -> 0 | AT50: =AM50*AP50 -> 0 | AU50: 0 | AV50: 0
AL51: 49 | AM51: =INDPREC!C53 -> 0 | AN51: =INDPREC!D53 -> 0 | AO51: =INDPREC!E53 -> 0 | AP51: =INDPREC!F53 -> 0 | AQ51: =AM51*AN51 -> 0 | AR51: =AO51*AN51 -> 0 | AS51: =AO51*AP51 -> 0 | AT51: =AM51*AP51 -> 0 | AU51: 0 | AV51: 0
AL52: 50 | AM52: =INDPREC!C54 -> 0 | AN52: =INDPREC!D54 -> 0 | AO52: =INDPREC!E54 -> 0 | AP52: =INDPREC!F54 -> 0 | AQ52: =AM52*AN52 -> 0 | AR52: =AO52*AN52 -> 0 | AS52: =AO52*AP52 -> 0 | AT52: =AM52*AP52 -> 0 | AU52: 0 | AV52: 0
AQ53: =SUM(AQ3:AQ52) -> 0 | AR53: 0 | AS53: 0 | AT53: 0 | AU53: 0 | AV53: 0
